Cogmind - Beta 16 @@@ ROGUE MODE // 2025.11.09 @ 00:10:40 Player: QXander Result: Destroyed by A-27 Freighter with PD Laser Performance ------------- Evolutions (4) 2000 Regions Visited (7) 1400 Robots Destroyed (62) 310 Value Destroyed (1209) 1209 Prototype IDs (2) 40 Alien Tech Used (0) 0 Bonus (0) 0 TOTAL SCORE: 4959 Bonus ------- None Cogmind --------- Core Integrity 0/850 Matter 258/300 Energy 99/100 System Corruption 4% Temperature Cool (6) Movement Core (200) Ox3 Location -6/Factory Parts ------- > --- POWER (1) -------- (None) > --- PROPULSION (4) --- (None) > --- UTILITY (8) ------ Medium Storage Unit Improved Signal Interpreter Improved Melee Analysis Suite Advanced Melee Analysis Suite Hacking Suite System Shield > --- WEAPON (2) ------- (None) > --- INVENTORY (10) --- Improved Deuterium Engine Wheel Improved Sensor Array Microactuators Utility Shielding Improved Medium Armor Plating Hacking Suite Component Analysis Suite System Restoration Module Peak State ------------ > --- POWER ------------ Fission Core > --- PROPULSION ------- Armored Huge Wheel Armored Huge Wheel > --- UTILITY ---------- Medium Storage Unit Improved Melee Analysis Suite Improved Melee Analysis Suite Improved Melee Analysis Suite Improved Melee Analysis Suite Utility Shielding Hacking Suite System Shield > --- WEAPON ----------- Assault Cannon Makeshift Sword > --- INVENTORY -------- Improved Deuterium Engine Improved Signal Interpreter Improved Melee Analysis Suite Microactuators Utility Shielding Improved Medium Armor Plating Component Analysis Suite Dynamic Insulation System System Restoration Module Hammer [Rating: 55] Favorites ----------- Power Reinforced Ion Engine Engine Reinforced Ion Engine Power Core Fission Core Propulsion Wheel Wheel Wheel Flight Unit Xenon Bombardment Thruster Utility Improved Melee Analysis Suite Device Microactuators Storage Medium Storage Unit Processor Improved Melee Analysis Suite Hackware Hacking Suite Protection Utility Shielding Weapon Makeshift Sword Energy Gun Medium Laser Ballistic Gun Gauss Rifle Ballistic Cannon Assault Cannon Launcher Grenade Launcher Slashing Weapon Makeshift Sword Build | -11 -10 -10 -9 -9 -8 -7 -6 ------- Run | Yrd Mat Min Mat Min Mat Fac Fac Slots Evolved 8 | . . . 2 . 2 2 2 Power . | . . . . . . . . Propulsion 2 | . . . 1 . . 1 . Utility 6 | . . . 1 . 2 1 2 Weapon . | . . . . . . . . Parts Attached 63 | 6 4 2 10 5 13 6 17 Power 11 | 1 1 . 2 1 . 1 5 Engine 9 | 1 1 . 2 1 . 1 3 Core 2 | . . . . . . . 2 Reactor . | . . . . . . . . Propulsion 24 | 2 . . 6 2 7 3 4 Treads . | . . . . . . . . Leg . | . . . . . . . . Wheel 23 | 2 . . 6 2 6 3 4 Hover . | . . . . . . . . Flight 1 | . . . . . 1 . . Utility 20 | 1 2 . 2 2 4 2 7 Device 5 | . 2 . . 2 . . 1 Storage 2 | 1 . . . . 1 . . Processor 8 | . . . 1 . 3 . 4 Hackware 2 | . . . . . . 1 1 Protection 3 | . . . 1 . . 1 1 Artifact . | . . . . . . . . Weapon 8 | 2 1 2 . . 2 . 1 Energy Gun 2 | 2 . . . . . . . Energy Cannon . | . . . . . . . . Ballistic Gun 2 | . . . . . 2 . . Ballistic Cannon 1 | . . . . . . . 1 Launcher 1 | . . 1 . . . . . Special Weapon . | . . . . . . . . Impact Weapon . | . . . . . . . . Slashing Weapon 2 | . 1 1 . . . . . Piercing Weapon . | . . . . . . . . Special Melee Weapon . | . . . . . . . . Unidentified Prototypes . | . . . . . . . . Parts Lost 18 | . . . 5 . 1 4 8 Power 3 | . . . 1 . . 1 1 Propulsion 10 | . . . 3 . 1 2 4 Utility 1 | . . . . . . . 1 Weapon 4 | . . . 1 . . 1 2 Highest Loss Streak 6 | . . . 5 . 1 4 6 To Critical Strikes . | . . . . . . . . Average Backups 7 | . 2 3 4 5 8 9 9 Power 1 | . 1 2 1 1 2 2 1 Propulsion . | . . . . 2 . . . Utility 4 | . . . . . 5 6 7 Weapon . | . . 1 1 . . . . Tool/Special . | . . . . . . . . Unused Backups 20 | . 1 . . . 5 1 13 Power 1 | . . . . . 1 . . Propulsion . | . . . . . . . . Utility 16 | . . . . . 4 1 11 Weapon 1 | . . . . . . . 1 Tool/Special 2 | . 1 . . . . . 1 Average Slot Usage (%) 92 | . 99 100 78 100 98 88 88 Engine 7 | . 14 14 9 11 9 3 4 Wheel 24 | . 28 28 22 33 26 25 19 Device 6 | . 13 14 8 1 9 2 3 Storage 8 | . 14 14 11 11 9 7 6 Processor 18 | . . . 2 11 26 23 24 Hackware 4 | . . . . . . 6 10 Protection 3 | . . . 5 9 . 4 6 Energy Gun 3 | . 23 13 . 11 2 . . Ballistic Gun 2 | . . . . . 6 3 . Ballistic Cannon 1 | . . . . . . . 3 Slashing Weapon 7 | . 4 8 11 11 8 7 5 Peak Build Rating 55 | 6 7 10 14 19 33 37 55 Average Rating 29 | 4 6 8 10 14 30 31 45 On Entrance 14 | . 6 7 10 14 18 32 28 Avg Prop Armor Cover (%) . | . . . . . . . . Naked Turns . | . . . . . . . . Heaviest Build 29 | 12 15 16 19 22 28 28 29 Greatest Support 58 | 20 20 20 36 36 42 58 58 Greatest Overweight (x) 3 | . . . 2 . 1 . 3 Average Overweight (x) . | . . . . . . . . Largest Inventory Capacity 10 | 8 8 8 8 8 10 10 10 Average Capacity 9 | 7 8 8 8 8 9 10 10 Most Carried 10 | 1 4 4 5 8 10 10 10 Average Carried 7 | . 2 3 4 5 8 9 9 Final Capacity 10 | 8 8 8 8 8 10 10 10 Final Carried 10 | 1 3 4 4 6 9 10 9 Class Distribution -------------------- 58% | Scavenger-Mutant 24% | Mutant 16% | Hacker-Mutant Dominant Class ---------------- Mutant | -10/Materials Mutant | -10/Mines Mutant | -9/Materials Scavenger-Mutant | -9/Mines Scavenger-Mutant | -8/Materials Scavenger-Mutant | -7/Factory Scavenger-Mutant | -6/Factory Resources | -11 -10 -10 -9 -9 -8 -7 -6 ----------- Run | Yrd Mat Min Mat Min Mat Fac Fac Matter Collected 969 | 166 144 . 130 50 244 80 155 Remotely . | . . . . . . . . Salvage Created 2493 | . 154 . 449 398 878 207 407 Parts 135 | . 7 . 28 16 42 7 35 Haulers Intercepted 3 | . 1 . . . 2 . . Recyclers Shooed 4 | . . . . 3 1 . . Parts Field Recycled . | . . . . . . . . Retrieved Matter . | . . . . . . . . Parts Self-Destructed . | . . . . . . . . Prevented . | . . . . . . . . Parts Restored . | . . . . . . . . Kills | -11 -10 -10 -9 -9 -8 -7 -6 ------- Run | Yrd Mat Min Mat Min Mat Fac Fac Combat Hostiles Destroyed 24 | . 1 . 7 3 9 1 3 Melee 24 | . 1 . 7 3 9 1 3 Classes Destroyed 14 | . 3 . 5 1 3 . 2 Worker 15 | . . . 3 2 4 1 5 Builder 5 | . . . 2 . 1 . 2 Tunneler 3 | . . . . . 2 1 . Hauler 3 | . 1 . . . 2 . . Recycler 8 | . 1 . 1 3 2 1 . Operator 2 | . . . . . . . 2 Watcher 2 | . . . . . 1 . 1 Swarmer 2 | . . . 2 . . . . Grunt 9 | . 1 . 3 2 3 . . Brawler 2 | . . . . 1 1 . . Duelist 1 | . . . 1 . . . . Sentry 7 | . . . 1 . 3 1 2 Hunter 2 | . . . . . 2 . . Programmer 1 | . . . . . . . 1 Best Kill Streak 9 | . 2 . 9 3 7 1 2 Combat Bots Only 5 | . 1 . 5 3 5 1 1 Max Kills in Single Turn 1 | . 1 . 1 1 1 1 1 Gunslinging . | . . . . . . . . Exploded . | . . . . . . . . Melee 1 | . 1 . 1 1 1 1 1 Uniques/NPCs Destroyed . | . . . . . . . . Combat | -11 -10 -10 -9 -9 -8 -7 -6 -------- Run | Yrd Mat Min Mat Min Mat Fac Fac Hostile Shots Fired 346 | . . . 31 4 54 18 239 Missed 109 | . . . 10 2 21 1 75 Hits 237 | . . . 21 2 33 17 164 Melee 10 | . . . 8 . . . 2 Projectile 227 | . . . 13 2 33 17 162 Critical Strikes 10 | . . . 2 . . . 8 Actively Blocked 1 | . . . . . . . 1 Part Disruptions 1 | . . . . . . . 1 Damage Taken 3343 | . . . 389 61 501 321 2071 Core 1148 | . . . 66 . 169 63 850 Absorbed by Shields . | . . . . . . . . Redirected to Shielding 70 | . . . . . . 3 67 Regen/Repaired (Parts) 52 | . . . . . 19 . 33 Core Remaining (%) 88 | 100 . 100 . 83 69 91 . Volleys Fired 19 | . 4 . . 7 7 . 1 Largest 2 | . 2 . . 1 1 . 1 Hottest 100 | . 100 . . 50 50 . 37 Shots Fired 21 | . 6 . . 7 7 . 1 Gun 20 | . 6 . . 7 7 . . Cannon 1 | . . . . . . . 1 Launcher . | . . . . . . . . Special . | . . . . . . . . Kinetic 7 | . . . . . 6 . 1 Thermal 14 | . 6 . . 7 1 . . Explosive . | . . . . . . . . Electromagnetic . | . . . . . . . . Robot Hit Streak 6 | . 2 . . 6 2 . . Robot Miss Streak 3 | . 2 . . . 3 . 1 Penetration Max . | . . . . . . . . Secondary Targets . | . . . . . . . . Shots Hit Robots 136 | . 4 . 34 15 44 7 32 Core Hits 55 | . 4 . 11 9 16 3 12 Critical Kills . | . . . . . . . . Critical Parts Destroyed 1 | . . . . . 1 . . Critical Strikes 10 | . . . 2 . 5 . 3 Destroy 1 | . . . . . 1 . . Sever 9 | . . . 2 . 4 . 3 Melee Attacks 147 | . 2 . 42 13 46 7 37 Impact . | . . . . . . . . Slashing 147 | . 2 . 42 13 46 7 37 Piercing . | . . . . . . . . Sneak Attacks 39 | . 2 . 7 6 13 3 8 Combat Hostiles 1 | . 1 . . . . . . Follow-up Attacks . | . . . . . . . . Damage Inflicted 6193 | . 122 . 1270 685 2162 384 1570 Guns 139 | . 26 . . 51 62 . . Cannons . | . . . . . . . . Explosions . | . . . . . . . . Melee 6053 | . 96 . 1270 634 2100 384 1569 Ramming 1 | . . . . . . . 1 Kinetic 62 | . . . . . 62 . . Thermal 77 | . 26 . . 51 . . . Explosive . | . . . . . . . . Electromagnetic . | . . . . . . . . Impact . | . . . . . . . . Slashing 6053 | . 96 . 1270 634 2100 384 1569 Piercing . | . . . . . . . . Highest Corruption 4 | . . . . . . 1 4 Average Corruption 1 | . . . . . . 1 2 Corruption Purged . | . . . . . . . . Corruption Blocked . | . . . . . . . . Effects 1 | . . . . . . 1 . Message Errors 1 | . . . . . . 1 . Overload Shots . | . . . . . . . . Overflow Damage 967 | . . . 141 130 334 84 278 Projectiles . | . . . . . . . . Explosions . | . . . . . . . . Melee 967 | . . . 141 130 334 84 278 Knockbacks . | . . . . . . . . Impact . | . . . . . . . . Kinetic . | . . . . . . . . Secondary . | . . . . . . . . Self-Inflicted Damage . | . . . . . . . . Shots . | . . . . . . . . Rammed 1 | . . . . . . . 1 Targets Rammed 1 | . . . . . . . 1 Kicked . | . . . . . . . . Crushed . | . . . . . . . . Highest Temperature 20 | . 20 . . 20 6 . 15 Average Temperature 9 | . 11 . . 10 2 . 15 Received Heat Transfer 483 | . . . 33 12 126 30 282 Siege Activations . | . . . . . . . . Martial Activations . | . . . . . . . . Shielding Activations . | . . . . . . . . Robots Disrupted . | . . . . . . . . Combat Hostiles . | . . . . . . . . Robots Corrupted . | . . . . . . . . Combat Hostiles . | . . . . . . . . Parts Fried . | . . . . . . . . Impact Corruptions . | . . . . . . . . Robots Melted . | . . . . . . . . Combat Hostiles . | . . . . . . . . Parts Melted 1 | . 1 . . . . . . Heat Transferred 222 | . 74 . . 148 . . . Parts Sabotaged 1 | . . . . . . . 1 Parts Stolen . | . . . . . . . . Parts Stripped . | . . . . . . . . Power Chain Reactions . | . . . . . . . . Alert | -11 -10 -10 -9 -9 -8 -7 -6 ------- Run | Yrd Mat Min Mat Min Mat Fac Fac Maximum Alert Level . | . . . . . . . . Low Security (%) 100 | 100 100 100 100 100 100 100 100 Level 1 . | . . . . . . . . Level 2 . | . . . . . . . . Level 3 . | . . . . . . . . Level 4 . | . . . . . . . . Level 5 . | . . . . . . . . High Security . | . . . . . . . . Max Security . | . . . . . . . . Peak Influence 193 | . 35 . 100 78 193 71 51 Initial 71 | . . . . 33 18 71 . Average 28 | . 5 . 37 43 69 17 11 Influence Increases 1137 | . 47 . 255 95 402 45 293 Destroy 0b10 Robot/C 480 | . 20 . 140 60 180 20 60 Destroy 0b10 Robot/NC 190 | . 10 . 30 25 60 15 50 Destroy Leader 170 | . 12 . 40 10 66 10 32 Successful Hack 56 | . 5 . . . 6 . 45 Destroy Structure 1 | . . . . . . . 1 Partial Spotted 45 | . . . . . 30 . 15 Lose Combat Pursuer 195 | . . . 45 . 60 . 90 Influence Decreases 1137 | . 45 2 170 132 292 203 293 Entered New Map 171 | . . 2 . 52 30 87 . Time Decay 892 | . 45 . 140 80 252 116 259 Lost Part 74 | . . . 30 . 10 . 34 Squads Dispatched 6 | . 1 . 1 . . . 4 Investigation 3 | . 1 . . . . . 2 Extermination 1 | . . . . . . . 1 Reinforcement 2 | . . . 1 . . . 1 Assault . | . . . . . . . . Garrison . | . . . . . . . . Intercept . | . . . . . . . . Searches Triggered . | . . . . . . . . Construction Impeded . | . . . . . . . . Haulers Reinforced . | . . . . . . . . Active Scanning Responses . | . . . . . . . . Cargo Convoy Interrupts 1 | . . . . . . . 1 Stealth | -11 -10 -10 -9 -9 -8 -7 -6 --------- Run | Yrd Mat Min Mat Min Mat Fac Fac Distress Signals 3 | . . . . . 2 . 1 Communications Jammed . | . . . . . . . . Distress Signals . | . . . . . . . . Times Spotted 67 | . 2 . 11 3 20 1 30 Peak Tracking Total 11 | . 1 . 4 3 5 1 11 Tactical Retreats 8 | . . . 3 . 2 . 3 Traps | -11 -10 -10 -9 -9 -8 -7 -6 ------- Run | Yrd Mat Min Mat Min Mat Fac Fac Traps Triggered 4 | . . . . 1 . 1 2 Indirectly . | . . . . . . . . Trap Hack Attempts . | . . . . . . . . Triggered . | . . . . . . . . Disarmed . | . . . . . . . . Reprogrammed . | . . . . . . . . Reused . | . . . . . . . . Traps Extracted . | . . . . . . . . Installed . | . . . . . . . . Triggered . | . . . . . . . . Machines | -11 -10 -10 -9 -9 -8 -7 -6 ---------- Run | Yrd Mat Min Mat Min Mat Fac Fac Machines Disabled . | . . . . . . . . Max in Single Turn . | . . . . . . . . Garrison Access 1 | . . . . . . . 1 Machines Repaired . | . . . . . . . . Machines Dismantled . | . . . . . . . . Machines Sabotaged . | . . . . . . . . Overloaded Fab Kills . | . . . . . . . . Hacking | -11 -10 -10 -9 -9 -8 -7 -6 --------- Run | Yrd Mat Min Mat Min Mat Fac Fac Machines Accessed 19 | . 4 . . 1 6 2 6 Terminals 12 | . 4 . . . 4 . 4 Fabricators 1 | . . . . . . 1 . Repair Stations 2 | . . . . . 1 . 1 Recycling Units . | . . . . . . . . Scanalyzers 1 | . . . . . 1 . . Garrison Access 2 | . . . . . . 1 1 Total Hacks 45 | . 9 . . 1 14 2 19 Successful 18 | . 3 . . 1 8 . 6 Failed 26 | . 6 . . . 5 2 13 Catastrophic 5 | . 2 . . . . 1 2 Database Lockouts 1 | . . . . . 1 . . Manual . | . . . . . . . . Terminals 29 | . 9 . . . 8 . 12 Fabricators 1 | . . . . . . 1 . Repair Stations 7 | . . . . . 2 . 5 Recycling Units . | . . . . . . . . Scanalyzers 4 | . . . . . 4 . . Garrison Access 3 | . . . . . . 1 2 Terminal Hacks 10 | . 3 . . 1 3 . 3 Prototype ID Bank 1 | . . . . . 1 . . Open Door 1 | . . . . 1 . . . Open DSF 1 | . . . . . . . 1 Recycling Unit Index 1 | . . . . . 1 . . Alert Level 1 | . 1 . . . . . . Hauler Manifests 1 | . . . . . 1 . . Zone Layout 4 | . 2 . . . . . 2 Fabricator Hacks . | . . . . . . . . Repair Station Hacks 4 | . . . . . 2 . 2 Scan Component 2 | . . . . . 1 . 1 Repair 2 | . . . . . 1 . 1 Recycling Unit Hacks . | . . . . . . . . Scanalyzer 3 | . . . . . 3 . . Insert Component 1 | . . . . . 1 . . Analyze 1 | . . . . . 1 . . Retrieve Study 1 | . . . . . 1 . . Garrison Access Hacks 1 | . . . . . . . 1 Seal Access 1 | . . . . . . . 1 Unauthorized Hacks . | . . . . . . . . Terminals . | . . . . . . . . Fabricators . | . . . . . . . . Repair Stations . | . . . . . . . . Recycling Units . | . . . . . . . . Scanalyzers . | . . . . . . . . Garrison Access . | . . . . . . . . Data Cores Recovered 1 | . . . . . . . 1 Used . | . . . . . . . . Hacking Detections 15 | . 4 . . . 4 2 5 Full Trace Events 4 | . 1 . . . 1 . 2 Feedback Events . | . . . . . . . . Feedback Blocked . | . . . . . . . . Robot Schematics Acquired . | . . . . . . . . Robots Built . | . . . . . . . . Authchips . | . . . . . . . . Time . | . . . . . . . . Total Robot Build Rating . | . . . . . . . . Part Schematics Acquired 1 | . . . . . 1 . . Parts Built . | . . . . . . . . Authchips . | . . . . . . . . Time . | . . . . . . . . Total Part Build Rating . | . . . . . . . . Part Studies Acquired 1 | . . . . . 1 . . Parts Repaired 2 | . . . . . 1 . 1 Time 66 | . . . . . 44 . 22 Parts Recycled . | . . . . . . . . Recycled Matter . | . . . . . . . . Retrieved Matter . | . . . . . . . . Retrieved Components . | . . . . . . . . Parts Scanalyzed 1 | . . . . . 1 . . Part Schematics Acquired 1 | . . . . . 1 . . Parts Damaged . | . . . . . . . . Bothacking | -11 -10 -10 -9 -9 -8 -7 -6 ------------ Run | Yrd Mat Min Mat Min Mat Fac Fac Used RIF Installer . | . . . . . . . . Robots Hacked . | . . . . . . . . Non-combat . | . . . . . . . . Combat . | . . . . . . . . Robot Hacks Applied . | . . . . . . . . Relay Couplers Released . | . . . . . . . . Fabnet Peak Effective % . | . . . . . . . . Robots Rewired . | . . . . . . . . Allies Hacked . | . . . . . . . . Hacks Repelled . | . . . . . . . . Allies | -11 -10 -10 -9 -9 -8 -7 -6 -------- Run | Yrd Mat Min Mat Min Mat Fac Fac Total Allies . | . . . . . . . . Largest Group . | . . . . . . . . Highest-Rated Group . | . . . . . . . . Highest-Rated Ally . | . . . . . . . . Total Orders . | . . . . . . . . Ally Attacks . | . . . . . . . . Total Damage . | . . . . . . . . Kills . | . . . . . . . . Allies Corrupted . | . . . . . . . . Allies Melted . | . . . . . . . . Intel | -11 -10 -10 -9 -9 -8 -7 -6 ------- Run | Yrd Mat Min Mat Min Mat Fac Fac Active Infowar (turns) 521 | . 212 . . . . . 309 Sensors 309 | . . . . . . . 309 Seismic 212 | . 212 . . . . . . Robot Analysis Total . | . . . . . . . . Derelict Logs Recovered 1 | . . . . 1 . . . Drone Launches . | . . . . . . . . Drone Recoveries . | . . . . . . . . Exploration | -11 -10 -10 -9 -9 -8 -7 -6 ------------- Run | Yrd Mat Min Mat Min Mat Fac Fac Turns Passed 3390 | 53 295 152 336 179 767 431 1177 Spaces Moved 2798 | 55 242 183 155 96 666 416 985 Core 13 | 3 . . 4 . . . 6 Treads . | . . . . . . . . Legs . | . . . . . . . . Wheels 2785 | 52 242 183 151 96 666 416 979 Hover . | . . . . . . . . Flight . | . . . . . . . . Fastest Speed 50 | 50 80 80 80 80 70 85 85 Average Speed 88 | 78 80 80 82 81 84 94 94 Slowest Speed 200 | 80 80 80 150 86 100 100 200 Overloaded Moves . | . . . . . . . . Propulsion Burnouts . | . . . . . . . . Robots Hopped . | . . . . . . . . Potential Cave-ins . | . . . . . . . . Cave-ins Triggered . | . . . . . . . . Exploration Rate (%) 21 | 3 29 40 22 17 35 7 16 Regions Visited 7 Branch Regions 2 Pre-discovered Areas . | . . . . . . . . Known Exits Taken . | . . . . . . . . Unknown Exits Taken 7 | 1 1 1 1 1 1 1 . Scrap Searched . | . . . . . . . . Spaces Dug . | . . . . . . . . Terrain Destroyed 1 | . . . . . . . 1 Melee . | . . . . . . . . Projectile 1 | . . . . . . . 1 AOE . | . . . . . . . . Terrain Rammed . | . . . . . . . . Walls Destroyed . | . . . . . . . . Machines Disabled . | . . . . . . . . Actions | -11 -10 -10 -9 -9 -8 -7 -6 --------- Run | Yrd Mat Min Mat Min Mat Fac Fac Total 3558 | 61 333 187 316 176 838 445 1202 Wait 424 | . 74 . 104 46 78 8 114 Move 2791 | 54 241 182 154 95 665 415 985 Hop . | . . . . . . . . Pick Up 37 | 1 3 2 . 2 10 3 16 Fast Attach 27 | 6 1 . 7 1 4 2 6 Attach 15 | . 2 . 2 1 1 3 6 Detach 8 | . 2 . 1 2 1 1 1 Swap 41 | . 2 2 4 6 12 4 11 Drop 44 | . 2 1 2 3 14 2 20 Fire 19 | . 4 . . 7 7 . 1 Melee 147 | . 2 . 42 13 46 7 37 Ram 1 | . . . . . . . 1 Kick . | . . . . . . . . Crush . | . . . . . . . . Escape Stasis 4 | . . . . . . . 4 Rewire . | . . . . . . . . Trap . | . . . . . . . . Miscellaneous . | . . . . . . . . Route ------- -11/Scrapyard -10/Materials -10/Mines -9/Materials -9/Mines (discovered 2 exits: *Mat x2) -8/Materials (discovered 2 exits: *Fac / Sto) -7/Factory -6/Factory (discovered 1 exit: [*Fac]) History --------- Turn | Location | Event 20 | -11/Scrapyard | Discovered new exit (range 15) 54 | -11/Scrapyard | Entered Materials 317 | -10/Materials | Build established: Mutant 334 | -10/Materials | Discovered new exit (range 7) 349 | -10/Materials | Entered Mines 398 | -10/Mines | A weapon hastily lodged in a ceiling crevice suddenly fell to the ground 432 | -10/Mines | YI-UF0 nonchalantly dropped a Grenade Launcher on the ground 481 | -10/Mines | Discovered new exit (range 11) 501 | -10/Mines | Entered Materials 501 | -9/Materials | Evolved 2 slots: Propulsion x1, Utility x1 624 | -9/Materials | Discovered new exit (range 16) 784 | -9/Materials | Lost 5 parts (1p3n1w) 837 | -9/Materials | Entered Mines 968 | -9/Mines | Discovered new exit (range 5) 980 | -9/Mines | Discovered new exit (range 9) 986 | -9/Mines | Met a Derelict who couldn't figure out how to use a Trap Extractor 1016 | -9/Mines | Entered Materials 1016 | -8/Materials | Evolved 2 slots: Utility x2 1017 | -8/Materials | Identified exit to Storage 1056 | -8/Materials | Build established: Scavenger-Mutant 1341 | -8/Materials | Central database locked down 1505 | -8/Materials | Discovered new exit (range 3) 1743 | -8/Materials | Repaired Mak. Sword 1783 | -8/Materials | Entered Factory 1783 | -7/Factory | Evolved 2 slots: Propulsion x1, Utility x1 2040 | -7/Factory | Discovered new exit (range 16) 2046 | -7/Factory | Lost 4 parts (1p2n1w) 2214 | -7/Factory | Entered another Factory area 2214 | -6/Factory | Evolved 2 slots: Utility x2 2221 | -6/Factory | Identified exit to DSF 2671 | -6/Factory | Repaired Mak. Sword 3112 | -6/Factory | Build established: Hacker-Mutant 3370 | -6/Factory | Discovered new exit (range 16) 3374 | -6/Factory | Cargo convoy interrupted 3384 | -6/Factory | Core integrity fell below 50% 3388 | -6/Factory | Core integrity fell below 20% 3391 | -6/Factory | Destroyed by A-27 Freighter with PD Laser Last Messages --------------- 03383_ E-15 Imp destroyed. 03383_ Slammed into H-66 Slayer. 03384_ Penetrated by Slug. 03384_ P-60 Hacker resets A-27 Freighter, system corruption cleaned. 03386_ P-60 Hacker resets X-72 Disruptor, system corruption cleaned. 03386_ Penetrated by Slug. 03388_ P-60 Hacker resets P-60 Hacker, system corruption cleaned. 03388_ Chain reaction triggered in Mic. Nuclear Core. 03389_ P-60 Hacker resets H-66 Slayer, system corruption cleaned. 03390_ P-60 Hacker resets P-60 Hacker, system corruption cleaned. 03390_ Penetrated by Slug. 03391_ Utility Shielding destroyed. 03391_ P-60 Hacker destroyed. [Achievement: Back For More] Map ----- +----------------------------------------------------+ | ??????????????????????????????????????????? | | ??????????????????????????????????????????? | | ??????????????????????????????????????????? | | ??????????????????????????????????????????? | | ??????????????????????????????????????????? | | ??????????????????????????????????????????? | | ??????????????????????????????????????????? | | ??????????????????????????????????????????? | | ??????????????????????????????????????????? | | ??????????????????????????????????????????? | | ??????????????????????????????????????????? | | ??????????????????????????????????????????? | | ???????????????#######????????????????????? | | ???????????????# #????????????????????? | | ???????????????# #????????????????????? | | ???????????????# < #????????????????????? | | ???????????????+ #????????????????????? | | ???????????????# #????????????????????? | | ???????????????#p% #????????????????????? | | ???????????????# #????????????????????? | | ???????????????# #????????????????????? | | ???????????????# pi A#????????????????????? | | ???????????????#xhpx%#????????????????????? | | ???????????????# h %=+????????????????????? | | ???????????????# /% #????????????????????? | | ???????????????# @ #????????????????????? | | ???????????????# #????????????????????? | | ???????????????# #????????????????????? | | ???????????????# #????????????????????? | | ???????????????# #????????????????????? | | ???????????????# #????????????????????? | | ??############## #????????????????????? | | ??# # #????????????????????? | | ??# # #????????????????????? | | ??# = """ """ # #????????????????????? | | ??# """ """ # ###T ####????????????? | | ??# """ """ # ??? ????? | | ??# + ??? ???? | | ??# """ """ # ??? ???? | | ??# """ """ # ??? ??"? | | ??# """ """ # ???? ??" | | ??# ################+#???? | | ??# #?????????????????????? """ | | ??# #????????????????????? """ | | ??###+##########????????????????????? """ | | ????# #??????????????????????????????? | | ????# #??????????????????????????????? | | ????# #??????????????????????????????? ? | | ????# #???????????????????????????????# #?? | | ????# #???????????????????????????????# #?? | +----------------------------------------------------+ Best States ------------- Heat Dissipation 38 Energy Generation 18 Energy Capacity 900 Matter Stores 300 Matter Capacity 300 Sight Range 16 Robot Scan Range 15 Terrain Scan Density 10 Armor Coverage 150 Utility Shielding 33 Melee Speed Boost 20 Evasion (%) 46 Melee Accuracy 24 Offensive Hacking 10 Defensive Hacking 10 Authchip Count 1 Item Schematics ----------------- Imp. Melee Analysis Suite | -8/Materials | Scanalyzed Robot Schematics ------------------ None Fabricated ------------ Nothing Repaired ---------- Mak. Sword | 52% | -8/Materials Mak. Sword | 17% | -6/Factory Studied --------- Wheel | -8/Materials | Hacked Alien Tech Used ----------------- None Achievements -------------- Back For More Challenges ------------ None Game ------ Seed AssemblyMobileLog Manual? 0 Play Time 00:40:45 Cumulative 40.2 hours Start 2025.11.08 @ 23:32:30 End 2025.11.09 @ 00:10:40 Sessions 1 Manual Loads 0 Difficulty Rogue Special Mode None Game No. 51 Rogue 51 Adventurer 0 Explorer 0 Win Type - Total 0 Types 0/0/0/0/0/0/0/0/0/0 Lore% 26 Gallery% 30 Achievement% 22 Wizard Run 0 Options --------- Layout 1 ASCII 0 Keyboard 1 Movement Arrows Keybinds 0 Fullscreen 2 Font 24/Smallcaps Map View 50x35 Zoom Use 0% Tactical HUD 1 Map Filters NONE Filters NONE Steam 1 RUN: 08547a82-21fb-44d7-ad25-6348d947e39e